bitfinex-derivatives/quotes_SOLF0:USTF0_20250817
["timestamp","ask_amount","ask_price","bid_price","bid_amount"]
[1755426951281,11.40997802,191.99,191.98,3.82116]
[1755426951486,7.69883715,191.99,191.98,3.82116]
[1755426953784,7.69883715,191.99,191.98,0.98116]
[1755426954085,7.69883715,191.99,191.98,3.82116]
[1755426958492,11.41485119,191.99,191.98,3.82116]
[1755426958692,11.41485119,191.99,191.98,0.98116]
[1755426959695,6.64601404,191.99,191.98,0.98116]
[1755426959895,11.41980565,191.99,191.98,0.98116]
[1755426960394,11.48204685,191.99,191.98,3.82116]
[1755426960798,11.48204685,191.99,191.98,0.98116]
[1755426961401,11.48204685,191.99,191.98,3.82116]
[1755426962896,8.49204685,191.99,191.98,3.82116]
[1755426963304,2.99,192.02,191.99,2.84]
[1755426963505,8.49995374,192.01,191.99,2.84]
[1755426963703,2.99,192.02,191.99,2.84]
[1755426963901,8.49939118,192.01,191.99,2.84]
[1755426964103,2.99,192.04,191.99,2.84]
[1755426964303,11.49002622,192.03,191.99,2.84]
[1755426964501,8.50002622,192.02,191.99,2.84]
[1755426964805,8.50002622,192.01,191.99,2.84]
[1755426964998,4.77899289,192.0,191.99,2.84]
[1755426966004,2.99,192.07,191.99,2.84]
[1755426966308,8.50126775,192.06,191.99,2.84]
[1755426966497,8.50126775,192.05,191.99,2.84]
[1755426966807,2.99,192.08,191.99,2.84]
[1755426967107,8.50265252,192.07,191.99,2.84]
[1755426967300,2.99,192.1,191.99,2.84]
[1755426967500,8.49799903,192.09,191.99,2.84]
[1755426967804,3.72009228,192.08,191.99,2.84]
[1755426968106,2.99,192.06,191.99,2.84]
[1755426968408,6.70990614,192.05,191.99,2.84]
[1755426968592,2.99,192.05,191.99,2.84]
[1755426968793,4.7760575,192.04,191.99,2.84]
[1755426968998,2.99,192.04,191.99,2.84]
[1755426969707,2.99,192.03,191.99,2.84]
[1755426969906,2.99,192.05,191.99,2.84]
[1755426970111,7.76558525,192.04,191.99,2.84]
[1755426970302,2.99,192.04,191.99,2.84]
[1755426971110,2.99,192.11,191.99,2.84]
[1755426971404,2.99,192.09,191.99,2.84]
[1755426971707,11.48429256,192.08,191.99,2.84]
[1755426971907,8.49429256,192.07,191.99,2.84]
[1755426972108,2.99,192.07,191.99,2.84]
[1755426972710,4.77560865,192.06,191.99,2.84]
[1755426972897,2.99,192.07,191.99,2.84]
[1755426973101,2.99,192.05,191.99,2.84]
[1755426976011,2.99,192.07,191.99,2.84]
[1755426976303,8.49136396,192.06,191.99,2.84]
[1755426976509,2.99,192.07,191.99,2.84]
[1755426976813,8.49111841,192.06,191.99,2.84]
[1755426977011,5.84964178,192.13,191.99,2.84]
[1755426977308,2.99,192.11,191.99,2.84]
[1755426977509,2.98,192.09,191.99,2.84]
[1755426977701,11.47182335,192.08,191.99,2.84]
[1755426977897,8.49182335,192.07,191.99,2.84]
[1755426978101,2.98,192.1,191.99,2.84]
[1755426978301,2.98,192.08,191.99,2.84]
[1755426980610,8.49000751,192.07,191.99,2.84]
[1755426980811,2.98,192.13,191.99,2.84]
[1755426981108,2.98,192.11,191.99,2.84]
[1755426981308,2.98,192.09,191.99,2.84]
[1755426981514,2.98,192.07,191.99,2.84]
[1755426982108,2.98,192.09,191.99,2.84]
[1755426982410,7.75453044,192.08,191.99,2.84]
[1755426982614,2.98,192.08,191.99,2.84]
[1755426987813,5.84964178,192.17,191.99,2.84]
[1755426988020,2.98,192.1,191.99,2.84]
[1755426990021,2.98,192.12,191.99,2.84]
[1755426991222,2.98,192.17,191.99,2.84]
[1755426991526,2.98,192.17,192.0,2.92]
[1755426999735,2.98,192.17,192.01,2.92]
[1755427001733,2.98,192.17,192.02,126.94]
[1755427001932,2.98,192.17,192.03,2.92]
[1755427009240,2.98,192.17,192.08,0.03837788]
[1755427009437,0.03536439,192.12,192.09,2.92]
[1755427012932,3.06536439,192.12,192.09,2.92]
[1755427013131,3.03,192.11,192.1,2.92]
[1755427013832,3.03,192.11,192.08,2.95837788]
[1755427014029,3.03,192.11,192.1,2.92]
[1755427014434,0.03536439,192.12,192.1,2.92]
[1755427014835,3.06536439,192.12,192.1,2.92]
[1755427015041,0.03536439,192.12,192.1,2.92]
[1755427017541,0.03536439,192.12,192.09,2.92]
[1755427018745,3.06536439,192.12,192.09,2.92]
[1755427020547,3.03,192.11,192.09,2.92]
[1755427021947,3.03,192.11,192.08,0.03837788]
[1755427021948,3.03,192.1,192.08,0.03837788]
[1755427022249,0.03536439,192.12,192.09,2.92]
[1755427022445,3.03,192.1,192.09,2.92]
[1755427023648,0.03536439,192.12,192.09,2.92]
[1755427023951,3.06536439,192.12,192.09,2.92]
[1755427024445,0.03536439,192.12,192.09,2.92]
[1755427024650,3.03,192.1,192.09,2.92]
[1755427026348,3.03,192.1,192.08,0.03837788]
[1755427026550,0.03536439,192.12,192.08,2.95837788]
[1755427026749,3.03,192.09,192.08,2.95837788]
[1755427039258,2.84536439,192.12,192.08,2.95837788]
[1755427040764,0.03536439,192.12,192.08,2.95837788]
[1755427041058,0.03536439,192.12,192.08,11.67744244]
[1755427041258,0.03536439,192.12,192.09,2.78]
[1755427042860,2.84536439,192.12,192.09,2.78]
[1755427043059,0.03536439,192.12,192.09,2.78]
[1755427043965,2.84536439,192.12,192.09,2.78]
[1755427044166,0.03536439,192.12,192.11,2.78]
[1755427048674,2.84536439,192.12,192.11,2.78]
[1755427051773,0.03536439,192.12,192.11,2.78]
[1755427058672,2.81,192.16,192.14,2.78]
[1755427058980,2.81,192.16,192.15,129.54]
[1755427059674,2.81,192.16,192.15,126.76]
[1755427059880,2.81,192.16,192.15,129.54]
[1755427065588,85.91943639,192.25,192.15,129.54]
[1755427065789,8.48667077,192.24,192.16,2.78]
[1755427065980,2.81,192.22,192.16,2.78]
[1755427066389,2.81,192.22,192.18,2.81386704]
[1755427066888,2.81,192.22,192.18,0.03386704]
[1755427071382,3.02,192.2,192.18,0.03386704]
[1755427071788,3.02,192.2,192.15,126.6]
[1755427072195,3.02,192.2,192.17,2.95625048]
[1755427073992,3.02,192.2,192.18,2.92]
[1755427079996,3.02,192.18,192.17,2.95625048]
[1755427080202,3.02,192.18,192.17,0.03625048]
[1755427080401,3.02,192.18,192.12,126.56]
[1755427080902,3.02,192.18,192.16,0.03809259]
[1755427081201,3.02,192.18,192.16,2.95809259]
[1755427084201,4.78662088,192.17,192.16,2.95809259]
[1755427084401,7.80662088,192.17,192.16,2.95809259]
[1755427084904,11.52350131,192.17,192.16,0.03809259]
[1755427085403,11.52502428,192.17,192.16,0.03809259]
[1755427091504,11.52502428,192.17,192.16,2.95809259]
[1755427092506,11.52502428,192.17,192.16,0.03809259]
[1755427092906,3.02,192.16,192.1,2.92]
[1755427093107,3.02,192.14,192.1,2.92]
[1755427094298,3.02,192.15,192.1,2.92]
[1755427095509,5.84964178,192.22,192.1,2.92]
[1755427095709,3.02,192.14,192.1,2.92]
[1755427102114,2.99,192.21,192.1,2.92]
[1755427102308,2.99,192.19,192.1,2.92]
[1755427102512,2.99,192.17,192.1,2.92]
[1755427102715,2.99,192.15,192.1,2.92]
[1755427102918,2.99,192.14,192.1,2.92]
[1755427103313,2.99,192.19,192.1,2.92]
[1755427103516,2.99,192.2,192.1,2.92]
[1755427110322,2.99,192.28,192.1,2.92]
[1755427110523,2.99,192.26,192.1,2.92]
[1755427110723,2.99,192.24,192.1,2.92]
[1755427111022,2.99,192.22,192.1,2.92]
[1755427113523,2.99,192.22,192.12,3.07]
[1755427116119,2.99,192.2,192.12,3.07]
[1755427116722,2.99,192.18,192.12,3.07]
[1755427129133,5.84964178,192.28,192.12,3.07]
[1755427129334,2.95,192.26,192.12,3.07]
[1755427129536,2.95,192.24,192.12,3.07]
[1755427129730,2.95,192.22,192.12,3.07]
[1755427137744,8.48182362,192.21,192.13,126.88]
[1755427138047,2.95,192.2,192.14,2.96]
[1755427145854,2.95,192.18,192.15,2.96]
[1755427146157,2.95,192.16,192.11,126.76]
[1755427146354,2.95,192.16,192.13,2.96]
[1755427148852,2.95,192.23,192.13,2.96]
[1755427149053,8.50183658,192.22,192.13,2.96]
[1755427149352,2.95,192.2,192.13,2.96]
[1755427149561,8.50183658,192.19,192.13,2.96]
[1755427149755,2.95,192.17,192.13,2.96]
[1755427150650,2.95,192.16,192.13,2.96]
[1755427153756,2.95,192.24,192.13,2.96]
[1755427153957,2.95,192.22,192.13,2.96]
[1755427154159,2.95,192.2,192.13,2.96]
[1755427154355,8.49938067,192.21,192.13,2.96]
[1755427154356,2.95,192.18,192.13,2.96]
[1755427162364,3.08,192.24,192.13,2.96]
[1755427162667,3.08,192.22,192.13,2.96]
[1755427162860,3.08,192.2,192.13,2.96]
[1755427166970,8.49927011,192.19,192.13,2.96]
[1755427167169,3.08,192.18,192.13,2.96]
[1755427175972,3.08,192.25,192.13,2.96]
[1755427176174,3.08,192.23,192.13,2.96]
[1755427176376,3.08,192.21,192.13,2.96]
[1755427177180,3.08,192.26,192.13,2.96]
[1755427177384,3.08,192.24,192.13,2.96]
[1755427177679,3.08,192.22,192.13,2.96]
[1755427191077,3.08,192.22,192.13,8.71906456]
[1755427191278,2.96,192.24,192.14,11.70906456]
[1755427191485,2.96,192.24,192.15,2.99]
[1755427205895,2.96,192.24,192.17,2.99]
[1755427206781,2.96,192.24,192.15,126.54]
[1755427206986,3.69456358,192.23,192.15,129.53]
[1755427207189,2.96,192.22,192.15,129.53]
[1755427207487,2.96,192.22,192.16,2.99]
[1755427215096,2.96,192.31,192.16,2.99]
[1755427215399,2.96,192.29,192.16,2.99]
[1755427215692,2.96,192.27,192.16,2.99]
[1755427218304,2.96,192.27,192.17,2.83]
[1755427226512,3.02,192.25,192.17,2.83]
[1755427226721,3.69092819,192.24,192.18,126.52]
[1755427226917,3.02,192.23,192.18,129.35]
[1755427227311,3.02,192.23,192.19,2.83]
[1755427227511,3.02,192.23,192.2,2.83]
[1755427228513,3.02,192.23,192.18,126.52]
[1755427228818,3.02,192.23,192.19,2.83]
[1755427229822,3.02,192.22,192.19,2.83]
[1755427230414,3.02,192.21,192.19,2.83]
[1755427231110,3.02,192.2,192.19,2.83]
[1755427231311,3.02,192.2,192.13,61.74657213]
[1755427231517,3.02,192.2,192.14,2.83]
[1755427231827,3.02,192.2,192.14,129.33]
[1755427232019,4.75536373,192.19,192.14,129.33]
[1755427232221,11.46496076,192.18,192.14,129.33]
[1755427232420,3.02,192.17,192.14,129.33]
[1755427232612,3.02,192.17,192.14,126.5]
[1755427232813,3.02,192.17,192.15,2.83]
[1755427233524,3.02,192.26,192.15,2.83]
[1755427233727,3.02,192.24,192.15,2.83]
[1755427234022,3.02,192.22,192.15,2.83]
[1755427234225,3.02,192.2,192.15,2.83]
[1755427241634,3.02,192.27,192.15,2.83]
[1755427241833,3.02,192.25,192.15,2.83]
[1755427242034,3.02,192.23,192.15,2.83]
[1755427242236,3.02,192.21,192.15,2.83]
[1755427244737,3.02,192.21,192.14,126.5]
[1755427244935,3.02,192.21,192.14,129.33]
[1755427245534,3.02,192.21,192.15,2.83]
[1755427252631,2.82,192.28,192.15,2.83]
[1755427252836,2.82,192.26,192.15,2.83]
[1755427253140,5.84964178,192.31,192.15,2.83]
[1755427253141,2.82,192.24,192.15,2.83]
[1755427256343,2.82,192.22,192.15,2.83]
[1755427257452,2.82,192.3,192.15,2.83]
[1755427257742,2.82,192.28,192.15,2.83]
[1755427257946,2.82,192.26,192.15,2.83]
[1755427259637,2.82,192.31,192.15,2.83]
[1755427259835,2.82,192.29,192.15,2.83]
[1755427260043,8.45340033,192.28,192.15,2.83]
[1755427260238,8.45340033,192.27,192.15,2.83]
[1755427260447,2.82,192.28,192.15,2.83]
[1755427260639,4.77846716,192.27,192.15,2.83]
[1755427260843,2.82,192.28,192.15,2.83]
[1755427261036,4.77864701,192.27,192.15,2.83]
[1755427261348,2.82,192.26,192.15,2.83]
[1755427265048,2.82,192.26,192.1,62.0]
[1755427265049,8.45581767,192.25,192.16,126.48]
[1755427265254,2.82,192.24,192.17,2.79]
[1755427275373,2.82,192.22,192.17,2.79]
[1755427275770,4.78686356,192.21,192.16,129.27]
[1755427275967,2.82,192.2,192.16,129.27]
[1755427276175,2.82,192.2,192.16,126.48]
[1755427276373,2.82,192.2,192.18,2.79]
[1755427277272,2.82,192.2,192.16,126.48]
[1755427277467,2.82,192.2,192.17,2.79]
[1755427277663,2.82,192.2,192.16,126.48]
[1755427277974,2.82,192.2,192.16,129.52]
[1755427278362,2.82,192.2,192.16,126.48]
[1755427278961,2.82,192.2,192.14,3.04]
[1755427287276,2.96,192.28,192.14,3.04]
[1755427287473,2.96,192.26,192.14,3.04]
[1755427287678,2.96,192.24,192.14,3.04]
[1755427287982,8.47271579,192.23,192.14,3.04]
[1755427288182,8.47271579,192.22,192.14,3.04]
[1755427288385,2.96,192.22,192.14,3.04]
[1755427290183,2.96,192.2,192.14,3.04]
[1755427291784,2.96,192.18,192.11,3.04]
[1755427303596,2.96,192.25,192.11,3.04]
[1755427303796,2.96,192.23,192.11,3.04]
[1755427303992,8.46328315,192.22,192.11,3.04]
[1755427304191,7.73833342,192.21,192.11,3.04]
[1755427304392,2.96,192.21,192.11,3.04]
[1755427312302,2.81,192.19,192.11,3.04]
[1755427319506,2.81,192.26,192.11,3.04]
[1755427319696,2.81,192.24,192.11,8.71906456]
[1755427319901,2.81,192.22,192.12,2.91]
[1755427320609,2.81,192.22,192.13,2.91]
[1755427320810,2.81,192.22,192.15,2.91]
[1755427321409,2.81,192.24,192.15,2.91]
[1755427322800,94.7720333,192.32,192.15,2.91]
[1755427323006,2.81,192.26,192.15,2.91]
[1755427330523,2.81,192.26,192.16,126.44]
[1755427330723,2.81,192.26,192.17,2.91]
[1755427335125,8.36343992,192.25,192.17,2.91]
[1755427335328,2.81,192.24,192.17,2.91]
[1755427345633,3.07,192.31,192.17,2.91]
[1755427345944,3.07,192.29,192.17,2.91]
[1755427346128,8.36936113,192.28,192.17,2.91]
[1755427346334,3.07,192.26,192.17,2.91]
[1755427346537,3.07,192.24,192.17,2.91]
[1755427347742,3.07,192.32,192.17,2.91]
[1755427348048,3.07,192.3,192.17,2.91]
[1755427348237,3.07,192.28,192.17,2.91]
[1755427348437,3.07,192.26,192.17,2.91]
[1755427353546,93.3703443,192.34,192.17,2.91]
[1755427353547,3.07,192.28,192.17,2.91]
[1755427355844,3.07,192.26,192.17,2.91]
[1755427367552,3.68223906,192.25,192.17,2.91]
[1755427367759,6.53224434,192.24,192.17,2.91]
[1755427367957,2.85,192.24,192.17,2.91]
[1755427382172,2.85,192.31,192.17,2.91]
[1755427382358,2.85,192.29,192.17,2.91]
[1755427382562,3.68284075,192.28,192.17,2.91]
[1755427382762,2.85,192.26,192.17,2.91]
[1755427383874,3.6827472,192.25,192.19,2.97]
[1755427384167,2.85,192.24,192.19,2.97]
[1755427386370,2.85,192.31,192.19,2.97]
[1755427386568,2.85,192.29,192.19,2.97]
[1755427386869,2.85,192.27,192.19,2.97]
[1755427387071,3.68344527,192.26,192.19,2.97]
[1755427387267,2.85,192.24,192.19,2.97]
[1755427390072,2.85,192.25,192.19,2.97]
[1755427407079,2.8,192.32,192.19,2.97]
[1755427407280,2.8,192.3,192.19,2.97]
[1755427407478,2.8,192.28,192.19,2.97]
[1755427407674,3.68642843,192.27,192.19,2.97]
[1755427407878,2.8,192.25,192.19,2.97]
[1755427417192,2.8,192.32,192.19,2.97]
[1755427417392,2.8,192.3,192.19,2.97]
[1755427417692,2.8,192.28,192.19,2.97]
[1755427417890,2.8,192.26,192.19,2.97]
[1755427418889,2.8,192.32,192.19,2.97]
[1755427419088,2.8,192.3,192.19,2.97]
[1755427419296,11.01719217,192.29,192.19,2.97]
[1755427419486,8.21719217,192.28,192.19,2.97]
[1755427419692,3.68613291,192.27,192.19,2.97]
[1755427419992,2.8,192.28,192.19,2.97]
[1755427420192,3.68605736,192.27,192.19,2.97]
[1755427420492,2.8,192.28,192.19,2.97]
[1755427420693,3.68607481,192.27,192.19,2.97]
[1755427420895,2.8,192.28,192.19,2.97]
[1755427421093,3.68607481,192.27,192.19,2.97]
[1755427421295,2.8,192.28,192.19,8.71906456]
[1755427421600,2.8,192.33,192.2,2.87]
[1755427421792,2.8,192.31,192.2,11.58906456]
[1755427421992,2.8,192.29,192.21,2.87]
[1755427423597,2.8,192.33,192.21,2.87]
[1755427423795,2.8,192.31,192.21,2.87]
[1755427423997,2.8,192.29,192.21,2.87]
[1755427424498,2.8,192.36,192.22,2.87]
[1755427424692,2.8,192.34,192.22,2.87]
[1755427424997,2.8,192.32,192.22,2.87]
[1755427425198,2.8,192.3,192.22,2.87]
[1755427428199,5.84964178,192.4,192.22,2.87]
[1755427428503,3.04,192.32,192.22,2.87]
[1755427441112,3.04,192.32,192.23,2.98]
[1755427465138,3.04,192.32,192.24,2.98]
[1755427465326,2.96,192.34,192.24,2.98]
[1755427466832,2.96,192.34,192.24,8.71906456]
[1755427467031,2.96,192.34,192.25,2.98]
[1755427469442,2.96,192.42,192.26,8.71906456]
[1755427469735,2.96,192.4,192.27,2.98]
[1755427469936,2.96,192.38,192.27,2.98]
[1755427470131,2.96,192.36,192.27,2.98]
[1755427471237,2.96,192.39,192.27,8.71906456]
[1755427471435,2.96,192.39,192.28,2.98]
[1755427471831,2.96,192.39,192.28,11.69906456]
[1755427472037,2.96,192.39,192.29,2.98]
[1755427472237,2.96,192.39,192.31,2.98]
[1755427480049,2.96,192.46,192.31,2.98]
[1755427480239,2.96,192.44,192.31,2.98]
[1755427480444,2.96,192.42,192.31,2.98]
[1755427480643,2.96,192.4,192.31,2.98]
[1755427483351,2.96,192.4,192.32,127.34]
[1755427483551,2.96,192.4,192.32,130.32]
[1755427484050,2.96,192.4,192.33,2.98]
[1755427491254,2.98,192.48,192.33,2.98]
[1755427491460,2.98,192.46,192.33,2.98]
[1755427491657,2.98,192.44,192.33,2.98]
[1755427491961,2.98,192.42,192.33,2.98]
[1755427497766,2.98,192.42,192.34,130.07]
[1755427498158,2.98,192.42,192.34,127.06]
[1755427498354,2.98,192.42,192.35,3.01]
[1755427501460,2.98,192.51,192.35,3.01]
[1755427501666,2.98,192.49,192.36,128.72]
[1755427501868,2.98,192.47,192.35,3.01]
[1755427502067,2.98,192.45,192.33,3.01]
[1755427502258,2.98,192.43,192.35,3.01]
[1755427503766,2.98,192.51,192.35,3.01]
[1755427503963,2.98,192.49,192.35,3.01]
[1755427504168,3.65967797,192.48,192.36,129.14]
[1755427504370,6.63967797,192.47,192.37,3.01]
[1755427504567,6.63967797,192.46,192.37,3.01]
[1755427504870,3.65967797,192.45,192.37,3.01]
[1755427505169,2.98,192.44,192.37,3.01]
[1755427506562,2.98,192.48,192.37,3.01]
[1755427506756,3.66179073,192.47,192.37,3.01]
[1755427506962,3.66179073,192.46,192.37,3.01]
[1755427507266,2.98,192.47,192.37,3.01]
[1755427507464,3.66259748,192.46,192.37,3.01]
[1755427507670,2.98,192.47,192.37,3.01]
[1755427507964,2.98,192.45,192.38,132.37]
[1755427508158,2.98,192.45,192.38,3.01]
[1755427508361,2.98,192.45,192.36,132.45]
[1755427508559,2.98,192.45,192.36,3.01]
[1755427509872,2.98,192.43,192.36,3.01]
[1755427510571,2.98,192.41,192.35,129.46]
[1755427511069,2.98,192.41,192.35,132.47]
[1755427511368,3.66658516,192.4,192.35,132.47]
[1755427511567,2.98,192.41,192.35,132.47]
[1755427511568,2.98,192.39,192.36,3.01]
[1755427512469,2.98,192.39,192.33,129.36]
[1755427513377,3.66539699,192.38,192.33,129.36]
[1755427513674,2.98,192.37,192.33,129.36]
[1755427513969,5.84964178,192.44,192.26,129.38]
[1755427513970,2.98,192.35,192.26,129.38]
[1755427514171,11.69928356,192.48,192.26,129.38]
[1755427514172,2.98,192.33,192.26,132.39]
[1755427514475,2.98,192.33,192.27,3.01]
[1755427517376,2.98,192.33,192.26,129.38]
[1755427517878,2.98,192.33,192.26,132.39]
[1755427518273,2.98,192.33,192.26,129.38]
[1755427518474,2.98,192.33,192.27,3.01]
[1755427535390,3.04,192.44,192.27,3.01]
[1755427535592,3.04,192.42,192.27,3.01]
[1755427535889,3.04,192.4,192.27,3.01]
[1755427536091,3.04,192.38,192.27,3.01]
[1755427536791,3.04,192.36,192.27,3.01]
[1755427544899,3.66141646,192.35,192.27,3.01]
[1755427545099,3.04,192.36,192.27,3.01]
[1755427545301,3.04,192.34,192.27,3.01]
[1755427555210,3.67942465,192.33,192.27,3.01]
[1755427555403,3.04,192.34,192.27,3.01]
[1755427555604,3.67942465,192.33,192.27,3.01]
[1755427555908,3.04,192.34,192.27,3.01]
[1755427556112,3.67942465,192.33,192.27,3.01]
[1755427556404,6.5520685,192.32,192.28,3.02]
[1755427556611,5.84964178,192.39,192.28,3.02]
[1755427556803,2.87,192.37,192.28,3.02]
[1755427557002,8.2125941,192.36,192.28,3.02]
[1755427557200,2.87,192.34,192.28,3.02]
[1755427557404,3.6820685,192.33,192.28,3.02]
[1755427557598,3.6820685,192.32,192.28,3.02]
[1755427558215,2.87,192.33,192.28,3.02]
[1755427558409,6.55669968,192.32,192.28,3.02]
[1755427558611,3.68669968,192.31,192.28,3.02]
[1755427558815,6.55643058,192.3,192.29,3.02]
[1755427559113,6.55643058,192.3,192.26,129.38]
[1755427559114,2.87,192.28,192.26,129.38]
[1755427559914,2.87,192.28,192.27,3.02]
[1755427560115,2.87,192.36,192.27,3.02]
[1755427560306,2.87,192.34,192.27,3.02]
[1755427560508,2.87,192.32,192.27,3.02]
[1755427560700,2.87,192.3,192.27,3.02]
[1755427561007,5.84964178,192.37,192.27,3.02]
[1755427561211,2.87,192.35,192.27,3.02]
[1755427561413,2.87,192.33,192.27,3.02]
[1755427561608,2.87,192.31,192.27,3.02]
[1755427561809,2.87,192.29,192.27,3.02]
[1755427562010,2.87,192.36,192.27,3.02]
[1755427562206,2.87,192.34,192.27,3.02]
[1755427562407,2.87,192.31,192.27,3.02]
[1755427562615,6.55490738,192.3,192.27,3.02]
[1755427562915,2.87,192.3,192.27,3.02]
[1755427563417,2.87,192.29,192.27,3.02]
[1755427564115,2.87,192.3,192.27,3.02]
[1755427566213,2.87,192.29,192.27,3.02]
[1755427566423,5.84964178,192.36,192.28,3.02]
[1755427566620,2.87,192.34,192.28,3.02]
[1755427566821,2.87,192.32,192.28,3.02]
[1755427567022,2.87,192.3,192.28,3.02]
[1755427567818,2.87,192.3,192.29,3.02]
[1755427568024,6.55451939,192.3,192.29,3.02]
[1755427576618,3.68451939,192.3,192.29,3.02]
[1755427577731,6.50451939,192.3,192.29,3.02]
[1755427578530,3.68451939,192.3,192.29,3.02]
[1755427579738,6.50451939,192.3,192.29,3.02]
[1755427580534,3.68451939,192.3,192.29,3.02]
[1755427582231,2.82,192.34,192.29,3.02]
[1755427582537,8.19349178,192.33,192.29,3.02]
[1755427582730,3.68390927,192.32,192.29,3.02]
[1755427582935,2.82,192.34,192.29,3.02]
[1755427583237,8.19341153,192.33,192.29,3.02]
[1755427583435,3.68390778,192.32,192.29,3.02]
[1755427583637,2.82,192.34,192.29,3.02]
[1755427583936,3.68353101,192.33,192.29,3.02]
[1755427584137,3.68353101,192.32,192.29,3.02]
[1755427584333,2.82,192.34,192.29,3.02]
[1755427584634,3.68350413,192.33,192.29,3.02]
[1755427584834,3.68350413,192.32,192.29,3.02]
[1755427585032,2.82,192.33,192.29,3.02]
[1755427585237,3.68402527,192.32,192.29,3.02]
[1755427585438,2.82,192.33,192.29,3.02]
[1755427585635,3.68374907,192.32,192.29,3.02]
[1755427585840,2.82,192.33,192.29,3.02]
[1755427586038,3.68374907,192.32,192.29,3.02]
[1755427586241,2.82,192.33,192.29,3.02]
[1755427586435,3.68346102,192.32,192.29,3.02]
[1755427586636,2.82,192.33,192.29,3.02]
[1755427586837,3.68346102,192.32,192.29,3.02]
[1755427587042,2.82,192.33,192.29,3.02]
[1755427587240,3.68346102,192.32,192.29,3.02]
[1755427587441,2.82,192.33,192.29,3.02]
[1755427587644,3.68319963,192.32,192.29,3.02]
[1755427587834,2.82,192.33,192.29,3.02]
[1755427588030,3.68319963,192.32,192.29,3.02]
[1755427588230,2.82,192.33,192.29,3.02]
[1755427588532,3.68296093,192.32,192.29,3.02]
[1755427588733,2.82,192.33,192.29,3.02]
[1755427588933,2.82,192.31,192.29,3.02]
[1755427590038,2.82,192.3,192.27,3.01]
[1755427590238,2.82,192.37,192.27,3.01]
[1755427590444,2.82,192.35,192.27,3.01]
[1755427590643,8.19588506,192.34,192.27,3.01]
[1755427590843,8.19588506,192.33,192.27,3.01]
[1755427591042,8.19588506,192.32,192.27,3.01]
[1755427591344,3.68330536,192.31,192.27,3.01]